bitfinex/quotes_SOLUSD_20240623
["timestamp","ask_amount","ask_price","bid_price","bid_amount"]
[1719182846963,0.34,129.13,129.02,7.7503]
[1719182847168,0.70332898,129.13,129.01,7.7512]
[1719182847367,0.70332898,129.13,129.02,207.7506]
[1719182848162,15.9082,129.09,129.0,7985.71507561]
[1719182848368,45.17,129.08,129.0,7985.71507561]
[1719182848679,0.17,129.07,129.0,7985.71507561]
[1719182853854,23.04471807,129.06,129.0,7954.36371519]
[1719182854061,45.17,129.05,129.0,7951.03771519]
[1719182854262,45.34,129.05,129.0,7951.03771519]
[1719182854783,45.34,129.05,129.0,7940.92162512]
[1719182855860,45.34,129.05,129.0,7893.92162512]
[1719182856373,0.38136546,129.04,129.0,7893.92162512]
[1719182856678,0.34,129.03,129.0,7893.92162512]
[1719182856882,0.34,129.03,129.0,7884.59162512]
[1719182857771,22.6722,129.06,129.0,7884.59162512]
[1719182858482,22.6722,129.06,129.01,1.54853622]
[1719182859486,22.6722,129.06,129.0,7884.59162512]
[1719182860892,255.0,129.04,129.0,7701.63623912]
[1719182861071,6.4679,129.03,129.0,7642.75900825]
[1719182861265,45.17,129.02,129.0,7642.75900825]
[1719182861465,45.17,129.02,129.0,7560.56763203]
[1719182861683,0.17,129.01,129.0,7539.61293203]
[1719182861893,1.35,129.01,129.0,7523.04275581]
[1719182862107,1.35,129.01,129.0,7477.99257959]
[1719182862268,9.288,129.01,129.0,7442.39257959]
[1719182862472,9.288,129.01,129.0,7397.60017866]
[1719182862691,54.288,129.01,129.0,7333.52017866]
[1719182862895,46.52,129.01,129.0,7253.68777773]
[1719182863201,46.52,129.01,129.0,7246.56777773]
[1719182863395,46.52,129.01,129.0,7239.44777773]
[1719182864496,48.67223932,129.01,129.0,7237.1153768]
[1719182864798,79.74871032,129.01,129.0,7237.1153768]
[1719182866992,33.22871032,129.01,129.0,7237.1153768]
[1719182867197,7.768,129.06,129.0,7237.1153768]
[1719182867198,1.18,129.05,129.0,7237.1153768]
[1719182867375,3.33223932,129.05,129.0,7237.1153768]
[1719182867573,31.070557,129.04,129.0,7237.1153768]
[1719182867798,3.33223932,129.05,129.0,7237.1153768]
[1719182867992,2.15223932,129.04,129.0,7237.1153768]
[1719182869487,6.23585323,129.07,129.0,7237.1153768]
[1719182869675,31.063706,129.07,129.0,7237.1153768]
[1719182870978,7.28905796,129.08,129.0,7237.1153768]
[1719182872798,45.0,129.07,129.0,7237.1153768]
[1719182872978,0.17,129.06,129.0,7237.1153768]
[1719182876909,0.17,129.07,129.0,7237.1153768]
[1719182877095,0.34,129.07,129.0,7243.3626768]
[1719182882291,6.10905796,129.08,129.0,7443.3626768]
[1719182882493,2.8931,129.13,129.0,7443.3626768]
[1719182882802,31.053851,129.1,129.0,7443.3626768]
[1719182883210,31.053851,129.1,129.0,7243.3626768]
[1719182883715,0.17,129.09,129.0,7243.3626768]
[1719182883902,45.34,129.09,129.0,7243.3626768]
[1719182886309,0.34,129.09,129.0,7343.3626768]
[1719182886711,0.34,129.09,129.0,7443.3626768]
[1719182887308,0.34,129.09,129.0,7343.3626768]
[1719182887510,0.34,129.09,129.0,7443.3626768]
[1719182887719,0.34,129.09,129.01,17.6807]
[1719182888219,0.34,129.09,129.02,100.0]
[1719182888399,6.16280967,129.11,129.02,200.0]
[1719182888599,255.0,129.14,129.03,6.9707]
[1719182888799,31.049521,129.12,129.03,6.9707]
[1719182889620,0.34,129.11,129.03,6.9707]
[1719182891908,45.34,129.11,129.03,6.9707]
[1719182898519,45.34,129.11,129.04,22.7725]
[1719182899325,0.34,129.11,129.04,22.7725]
[1719182899714,8.27899595,129.14,129.06,7.0304]
[1719182899921,8.27899595,129.14,129.07,22.7725]
[1719182900119,8.27899595,129.14,129.07,122.7725]
[1719182900837,8.27899595,129.14,129.1,7.0304]
[1719182901138,6.12675663,129.14,129.1,7.0304]
[1719182901332,39.12189878,129.18,129.1,7.0304]
[1719182901636,39.44478338,129.18,129.1,7.0304]
[1719182902624,0.17,129.17,129.1,7.0304]
[1719182902925,45.34,129.17,129.1,7.0304]
[1719182903138,45.17,129.17,129.1,7.0304]
[1719182903336,45.64949714,129.18,129.1,7.0304]
[1719182904737,45.34,129.17,129.1,7.0304]
[1719182914545,45.34,129.17,129.11,21.8619]
[1719182926443,53.4241756,129.17,129.11,21.8619]
[1719182932580,8.0841756,129.17,129.11,21.8619]
[1719182932782,37.56545936,129.18,129.11,21.8619]
[1719182933689,0.17,129.17,129.11,21.8619]
[1719182933858,6.52759836,129.18,129.11,21.8619]
[1719182934489,6.20471376,129.18,129.11,21.8619]
[1719182934669,31.029831,129.21,129.11,21.8619]
[1719182935593,45.17,129.2,129.12,100.0]
[1719182936793,0.17,129.19,129.12,100.0]
[1719182937003,0.17,129.19,129.13,9.4507]
[1719182938604,0.17,129.19,129.14,23.5493]
[1719182939477,0.17,129.2,129.14,23.5493]
[1719182939692,0.34,129.2,129.14,23.5493]
[1719182942297,0.34,129.2,129.13,9.4507]
[1719182942298,8.07986818,129.22,129.15,109.3227]
[1719182942595,255.0,129.26,129.15,109.3227]
[1719182942596,255.0,129.26,129.16,22.2513]
[1719182942795,31.019245,129.25,129.16,22.2513]
[1719182943676,0.17,129.24,129.16,22.2513]
[1719182944171,45.34,129.24,129.16,22.2513]
[1719182946276,0.34,129.24,129.16,22.2513]
[1719182949302,0.34,129.24,129.17,9.1437]
[1719182950801,0.34,129.24,129.18,23.3267]
[1719182960688,0.6628846,129.24,129.18,23.3267]
[1719182960910,31.6856416,129.24,129.18,23.3267]
[1719182961206,45.0,129.23,129.18,23.3267]
[1719182961410,0.17,129.22,129.18,23.3267]
[1719182961710,0.34,129.22,129.18,23.3267]
[1719182967324,31.3456416,129.24,129.18,23.3267]
[1719182967637,14.14529987,129.26,129.18,23.3267]
[1719182967797,2.15223932,129.25,129.18,23.3267]
[1719182968124,33.17041632,129.25,129.18,23.3267]
[1719182968715,0.17,129.24,129.18,23.3267]
[1719182969008,45.34,129.24,129.18,23.3267]
[1719182969693,45.34,129.24,129.17,9.1437]
[1719182969899,53.108,129.24,129.17,9.1437]
[1719182970225,7.768,129.22,129.17,9.1437]
[1719182970514,47.31309255,129.21,129.17,9.1437]
[1719182970733,0.17,129.2,129.17,9.1437]
[1719182972712,10.22586877,129.21,129.15,21.9764]
[1719182972898,2.14309255,129.21,129.15,21.9764]
[1719182974103,0.34,129.2,129.15,21.9764]
[1719182979033,0.17,129.2,129.15,21.9764]
[1719182980155,0.34,129.2,129.15,21.9764]
[1719182982233,8.23187779,129.21,129.15,21.9764]
[1719182982618,6.08878524,129.21,129.15,21.9764]
[1719182982814,8.08162934,129.24,129.17,32.3337]
[1719182983025,311.41960931,129.3,129.17,32.3337]
[1719182983226,8.081629,129.24,129.17,32.3337]
[1719182984537,0.34,129.23,129.17,32.3337]
[1719182987646,8.081629,129.24,129.17,32.3337]
[1719182988942,0.34,129.25,129.2,21.655]
[1719182989328,8.421629,129.25,129.2,21.655]
[1719182996053,45.0,129.24,129.2,21.655]
[1719182996255,0.17,129.23,129.2,21.655]
[1719182996557,0.34,129.23,129.2,21.655]
[1719182997953,0.34,129.23,129.2,20.58319421]
[1719182998751,14.3248855,129.25,129.2,20.58319421]
[1719183001946,0.34,129.24,129.2,20.58319421]
[1719183004254,45.34,129.24,129.19,1e-08]
[1719183005169,0.34,129.24,129.19,1e-08]
[1719183007262,0.34,129.24,129.2,22.0621]
[1719183014356,0.17,129.24,129.2,22.0621]
[1719183014561,14.3248855,129.25,129.2,22.0621]
[1719183026371,8.09047857,129.29,129.2,22.0621]
[1719183026771,38.60027257,129.29,129.2,22.0621]
[1719183027666,0.17,129.28,129.2,22.0621]
[1719183027871,0.34,129.28,129.2,22.0621]
[1719183028088,45.34,129.28,129.2,22.0621]
[1719183039796,0.34,129.28,129.21,100.0]
[1719183039995,0.34,129.28,129.22,23.3692]
[1719183044985,45.34,129.28,129.22,23.3692]
[1719183047001,300.34,129.28,129.22,23.3692]
[1719183052702,45.34,129.28,129.22,23.3692]
[1719183061106,0.34,129.28,129.22,23.3692]
[1719183061320,6.06648998,129.29,129.22,23.3692]
[1719183061321,6.06648998,129.29,129.23,100.0]
[1719183061823,31.002798,129.32,129.23,100.0]
[1719183062493,33.15503732,129.32,129.23,100.0]
[1719183062692,45.34,129.31,129.23,100.0]
[1719183062911,33.15503732,129.32,129.27,9.6098]
[1719183063110,6.49236273,129.34,129.32,100.0]
[1719183063111,0.3465727,129.34,129.32,100.0]
[1719183063314,6.14455557,129.41,129.32,200.0]
[1719183063523,308.180653,129.46,129.32,200.0]
[1719183063698,277.2018,129.46,129.32,200.0]
[1719183063894,277.2018,129.46,129.31,32.1798]
[1719183064416,277.2018,129.46,129.32,100.0]
[1719183065206,277.2018,129.46,129.31,32.1798]
[1719183065409,283.46803231,129.46,129.31,32.1798]
[1719183066634,0.17,129.45,129.31,32.1798]
[1719183066928,45.34,129.45,129.31,32.1798]
[1719183070228,9.4519,129.42,129.27,31.1362]
[1719183070437,67.4616,129.41,129.27,31.1362]
[1719183070731,0.17,129.4,129.27,31.1362]
[1719183071530,0.17,129.4,129.27,131.1362]
[1719183071702,0.17,129.4,129.27,231.1362]
[1719183071909,0.17,129.4,129.27,131.1362]
[1719183073610,10.14995,129.4,129.27,31.1362]
[1719183073827,45.17,129.39,129.27,31.1362]
[1719183074218,0.17,129.38,129.27,31.1362]
[1719183075244,33.0473,129.37,129.24,33.641]
[1719183075429,0.17,129.36,129.24,33.641]
[1719183075729,7.768,129.35,129.24,33.641]
[1719183075951,45.17,129.34,129.24,33.641]
[1719183076106,0.17,129.33,129.24,33.641]
[1719183076910,23.4528,129.32,129.2,31.283]
[1719183077122,45.34,129.31,129.2,31.283]
[1719183078038,45.34,129.31,129.2,39.0229]
[1719183078336,45.34,129.31,129.21,100.0]
[1719183079039,45.34,129.31,129.2,31.283]
[1719183079415,45.34,129.31,129.2,39.0229]
[1719183080458,45.34,129.31,129.21,100.0]
[1719183081468,45.34,129.31,129.23,100.0]
[1719183081781,0.34,129.31,129.23,100.0]
[1719183081956,0.34,129.31,129.2,31.283]
[1719183081957,9.2829,129.31,129.2,31.283]
[1719183082158,45.0,129.3,129.2,31.283]
[1719183082464,0.17,129.29,129.2,31.283]
[1719183082638,0.34,129.29,129.2,31.283]
[1719183083038,24.0323,129.28,129.17,33.6954]
[1719183083234,45.34,129.27,129.17,33.6954]
[1719183083773,45.34,129.27,129.14,32.1943]
[1719183083941,8.9942,129.26,129.14,32.1943]
[1719183084147,45.34,129.25,129.14,32.1943]
[1719183092243,45.34,129.25,129.15,100.0]
[1719183092439,45.34,129.25,129.17,100.0]
[1719183092646,45.34,129.25,129.18,1.54722766]
[1719183092863,8.9942,129.26,129.18,1.54722766]
[1719183093069,8.9942,129.26,129.17,100.0]
[1719183093279,8.9942,129.26,129.15,100.0]
[1719183094671,45.34,129.25,129.15,100.0]
[1719183095963,0.34,129.25,129.17,200.0]
[1719183096258,0.34,129.25,129.19,100.0]
[1719183097188,0.34,129.25,129.17,200.0]
[1719183098165,0.34,129.25,129.17,100.0]
[1719183098366,0.34,129.25,129.15,100.0]
[1719183098567,45.34,129.25,129.15,100.0]
[1719183099167,45.34,129.25,129.15,200.0]
[1719183099489,45.34,129.25,129.15,207.7429]
[1719183103312,45.34,129.25,129.15,200.0]
[1719183103603,45.34,129.25,129.15,100.0]
[1719183104899,45.34,129.25,129.17,100.0]
[1719183105080,0.34,129.25,129.17,100.0]
[1719183105284,8.9942,129.26,129.19,107.7402]
[1719183105482,8.9942,129.26,129.19,100.0]
[1719183106502,8.9942,129.26,129.19,107.7404]
[1719183106794,8.9942,129.26,129.19,100.0]
[1719183109398,8.9942,129.26,129.21,100.0]
[1719183109598,24.0323,129.28,129.21,100.0]
[1719183112705,24.0323,129.28,129.23,100.0]
[1719183113920,24.0323,129.28,129.19,100.0]
[1719183114134,24.0323,129.28,129.17,200.0]
[1719183114351,0.34,129.27,129.17,200.0]
[1719183115013,45.34,129.27,129.17,100.0]
[1719183118845,33.6017,129.26,129.17,100.0]
[1719183119032,45.17,129.25,129.17,100.0]
[1719183119235,0.17,129.24,129.17,100.0]
[1719183119640,0.17,129.25,129.17,100.0]
[1719183119844,0.34,129.25,129.17,100.0]
[1719183120242,0.34,129.25,129.17,200.0]
[1719183120435,33.6017,129.26,129.19,100.0]
[1719183121042,33.6017,129.26,129.21,100.0]
[1719183121423,33.6017,129.26,129.19,100.0]
[1719183122533,33.6017,129.26,129.21,100.0]
[1719183123638,33.6017,129.26,129.22,1.69312445]
[1719183124732,33.6017,129.26,129.19,100.0]
[1719183124942,0.17,129.25,129.17,200.0]
[1719183125151,33.6017,129.26,129.17,207.7415]
[1719183125753,33.6017,129.26,129.2,100.0]
[1719183127232,33.6017,129.26,129.18,100.0]
[1719183127433,33.6017,129.26,129.16,100.0]
[1719183127834,0.17,129.25,129.16,100.0]
[1719183128429,0.17,129.25,129.17,100.0]
[1719183128640,0.17,129.25,129.18,100.0]
[1719183128931,0.17,129.25,129.17,100.0]
[1719183129253,0.17,129.25,129.18,100.0]
[1719183130857,0.17,129.25,129.16,100.0]
[1719183131056,24.0199,129.24,129.14,101.0]
[1719183131260,0.17,129.23,129.14,101.0]
[1719183131461,0.34,129.23,129.14,101.0]
[1719183132958,24.0199,129.24,129.18,100.0]
[1719183133159,24.0199,129.24,129.19,1.54569442]
[1719183133459,24.0199,129.24,129.18,100.0]
[1719183134662,24.0199,129.24,129.16,100.0]
[1719183135244,9.4264,129.22,129.16,100.0]
[1719183135651,9.4264,129.22,129.14,101.0]
[1719183146978,24.0199,129.24,129.18,100.0]
[1719183153961,24.0199,129.24,129.2,100.0]
[1719183154961,24.0199,129.24,129.17,100.0]
[1719183155563,24.0199,129.24,129.15,100.0]
[1719183155766,0.34,129.23,129.14,101.0]
[1719183157273,31.732,129.22,129.14,1.0]
[1719183158081,31.732,129.22,129.14,101.0]
[1719183158282,31.732,129.22,129.15,100.0]
[1719183160081,31.732,129.22,129.15,107.7427]
[1719183160286,31.732,129.22,129.17,100.0]
[1719183160476,22.2712,129.22,129.17,107.7416]
[1719183160881,22.2712,129.22,129.2,100.0]
[1719183161876,22.2712,129.22,129.18,100.0]
[1719183162089,22.2712,129.22,129.17,100.0]
[1719183164091,22.2712,129.22,129.19,100.0]
[1719183164393,8.982,129.25,129.19,107.7404]
[1719183164576,8.982,129.25,129.2,0.17]
[1719183167271,8.982,129.25,129.19,100.0]
[1719183175487,8.982,129.25,129.16,116.5598]
[1719183175488,8.982,129.25,129.17,100.0]
[1719183176074,8.982,129.25,129.17,107.7416]
[1719183176278,8.982,129.25,129.17,100.0]
[1719183177304,8.982,129.25,129.18,100.0]
[1719183177483,8.982,129.25,129.19,100.0]
[1719183178481,8.982,129.25,129.21,100.0]
[1719183178888,8.982,129.25,129.19,100.0]
[1719183180604,8.982,129.25,129.21,100.0]
[1719183181696,8.982,129.25,129.19,100.0]
[1719183186308,8.982,129.25,129.18,100.0]
[1719183186506,8.982,129.25,129.16,200.0]
[1719183186710,22.4685,129.24,129.16,100.0]
[1719183187309,22.4685,129.24,129.14,231.9139]
[1719183187890,22.4685,129.24,129.15,0.17]
[1719183189486,22.4685,129.24,129.14,208.743]
[1719183189710,0.34,129.23,129.14,208.743]
[1719183190713,22.8666,129.21,129.14,1.0]
[1719183190910,0.17,129.2,129.14,1.0]
[1719183191298,22.8666,129.21,129.14,1.0]
[1719183191503,22.8666,129.21,129.14,101.0]
[1719183193394,22.8666,129.21,129.16,100.0]
[1719183193611,22.8666,129.21,129.18,100.0]
[1719183194901,6.08609888,129.26,129.18,100.0]
[1719183195105,31.3501,129.25,129.18,100.0]
[1719183214629,31.3501,129.25,129.2,100.0]
[1719183218516,31.3501,129.25,129.22,100.0]
[1719183220234,22.1112,129.25,129.22,100.0]
[1719183220442,22.8159,129.28,129.22,100.0]
[1719183224359,22.8159,129.28,129.21,100.17]
[1719183224747,22.8159,129.28,129.2,100.0]
[1719183234691,22.8159,129.28,129.21,0.17]
[1719183234963,22.8159,129.28,129.23,100.0]
[1719183235349,22.8159,129.28,129.22,100.0]
[1719183235550,22.8159,129.28,129.22,200.0]
[1719183236366,22.8159,129.28,129.22,100.0]
[1719183237451,22.8159,129.28,129.22,200.0]
[1719183238242,22.8159,129.28,129.22,100.0]
[1719183238948,22.8159,129.28,129.22,200.0]
[1719183240467,22.8159,129.28,129.22,100.0]
[1719183241467,22.8159,129.28,129.22,200.0]
[1719183241658,22.8159,129.28,129.22,100.0]
[1719183245071,22.8159,129.28,129.22,200.0]
[1719183249284,22.8159,129.28,129.24,100.0]
[1719183249866,22.2628,129.34,129.28,100.0]
[1719183250071,22.2628,129.34,129.3,100.0]
[1719183250267,22.2628,129.34,129.31,0.80703492]
[1719183251462,22.2628,129.34,129.27,100.0]
[1719183251863,22.2628,129.34,129.25,100.0]
[1719183252058,0.34,129.33,129.23,100.0]
[1719183252265,22.1255,129.32,129.23,100.0]
[1719183252899,22.1255,129.32,129.25,100.0]
[1719183253269,22.1255,129.32,129.27,100.0]
[1719183255994,22.1255,129.32,129.25,100.0]
[1719183256176,9.6871,129.31,129.23,200.0]
[1719183256383,9.6871,129.31,129.23,100.0]
[1719183257007,23.8402,129.3,129.23,100.0]
[1719183257167,23.8402,129.3,129.21,200.0]
[1719183257484,23.8402,129.28,129.16,100.0]
[1719183257685,9.7277,129.27,129.15,100.0]
[1719183257870,69.1219,129.26,129.14,101.0]
[1719183258069,69.1219,129.26,129.14,1.0]
[1719183258491,69.1219,129.26,129.15,100.0]
[1719183258872,69.1219,129.26,129.14,1.0]
[1719183259201,9.3911,129.25,129.14,1.0]
[1719183259490,67.281,129.24,129.14,1.0]
[1719183259694,0.17,129.23,129.14,1.0]
[1719183260092,0.17,129.23,129.15,100.0]
[1719183260271,22.281,129.24,129.15,100.0]
[1719183261096,22.281,129.24,129.17,100.0]
[1719183261472,22.111,129.24,129.17,100.0]
[1719183261672,9.3911,129.25,129.18,100.0]
[1719183261876,9.3911,129.25,129.19,101.5466272]
[1719183262287,9.3911,129.25,129.21,100.0]
[1719183262488,33.1083,129.28,129.21,100.0]
[1719183263620,33.1083,129.28,129.19,100.0]
[1719183263790,33.1083,129.28,129.17,100.0]
[1719183264296,0.34,129.27,129.17,100.0]
[1719183265193,0.34,129.27,129.2,100.0]
[1719183266505,0.34,129.27,129.21,1.87066628]
[1719183267903,33.1083,129.28,129.22,100.0]
[1719183270210,33.1083,129.28,129.2,200.0]
[1719183270413,33.1083,129.28,129.2,100.0]
[1719183271199,33.1083,129.28,129.18,200.0]
[1719183271401,33.1083,129.28,129.21,100.0]
[1719183271709,33.1083,129.28,129.22,100.0]
[1719183275615,33.1083,129.28,129.24,100.0]
[1719183275795,6.12775272,129.31,129.24,100.0]
[1719183275998,33.2083,129.32,129.24,100.0]
[1719183276195,33.2083,129.32,129.26,100.0]
[1719183276513,33.2083,129.32,129.27,0.7434068]
[1719183277927,33.2083,129.32,129.24,100.0]
[1719183279704,33.2083,129.32,129.22,100.0]
[1719183280003,0.34,129.31,129.22,100.0]
[1719183281722,0.34,129.31,129.21,100.17]
[1719183281911,45.34,129.31,129.21,100.0]
[1719183285817,45.34,129.31,129.23,100.0]
[1719183286023,0.34,129.31,129.23,100.0]
[1719183287708,0.34,129.31,129.25,100.0]
[1719183289530,0.34,129.31,129.23,100.0]
[1719183297847,33.2083,129.32,129.26,100.0]
[1719183299449,33.2083,129.32,129.28,100.0]
[1719183300614,33.2083,129.32,129.26,200.0]
[1719183301035,33.2083,129.32,129.26,100.0]
[1719183301343,33.2083,129.32,129.24,100.0]
[1719183301526,0.34,129.31,129.22,100.0]
[1719183301720,23.1519,129.3,129.19,100.0]
[1719183301928,0.17,129.29,129.19,100.0]
[1719183302128,0.34,129.29,129.19,100.0]
[1719183302324,0.34,129.29,129.16,200.0]
[1719183302325,9.0008,129.28,129.16,200.0]
[1719183302546,45.17,129.27,129.16,100.0]
[1719183302747,0.17,129.26,129.16,100.0]
[1719183302930,0.17,129.26,129.16,200.0]
[1719183304954,31.7229,129.28,129.19,100.0]
[1719183305263,31.7229,129.28,129.2,100.0]
[1719183305434,31.7229,129.28,129.22,100.0]
[1719183305630,31.7229,129.28,129.2,100.0]
[1719183307764,31.7229,129.28,129.19,100.0]
[1719183307765,31.7229,129.28,129.18,100.17]
[1719183308071,0.17,129.27,129.16,200.0]
[1719183308249,45.34,129.27,129.16,200.0]
[1719183309382,0.34,129.27,129.18,200.0]
[1719183310798,22.7079,129.26,129.16,100.0]
[1719183311078,0.17,129.25,129.16,100.0]
[1719183311292,22.7079,129.23,129.14,1.0]
[1719183311874,0.34,129.22,129.14,1.0]
[1719183317072,0.34,129.22,129.14,101.0]
[1719183320176,0.34,129.22,129.14,1.0]
[1719183320568,6.54148007,129.22,129.14,1.0]
[1719183320780,6.54148007,129.22,129.14,101.0]
[1719183321089,22.7079,129.23,129.16,200.0]
[1719183321291,22.7079,129.23,129.18,100.0]
[1719183322778,22.7079,129.23,129.16,200.0]
[1719183323175,22.7079,129.23,129.16,100.0]
[1719183326772,22.7079,129.23,129.18,100.0]
[1719183328393,22.7079,129.23,129.16,200.0]
[1719183328594,22.7079,129.23,129.16,100.0]
[1719183329871,22.7079,129.23,129.14,208.7435]
[1719183330897,22.7079,129.23,129.16,100.0]
[1719183331973,22.7079,129.23,129.16,107.7421]
[1719183332178,22.7079,129.23,129.19,100.0]
[1719183337696,22.7079,129.23,129.17,200.17]
[1719183337904,22.7079,129.23,129.15,200.17]
[1719183338403,22.7079,129.23,129.15,100.17]
[1719183338580,22.7079,129.23,129.15,100.0]
[1719183342915,0.17,129.22,129.14,1.0]
[1719183343407,0.34,129.22,129.14,1.0]
[1719183345912,0.34,129.22,129.15,100.0]
[1719183350522,0.34,129.22,129.16,1.54601904]
[1719183354014,0.34,129.22,129.14,1.0]
[1719183354218,30.9659,129.21,129.14,1.0]
[1719183354394,66.5293,129.2,129.08,200.0]
[1719183354716,0.17,129.19,129.08,200.0]
[1719183355016,31.1886,129.18,129.08,100.0]
[1719183355317,0.34,129.17,129.06,200.0]
[1719183356822,0.34,129.17,129.07,0.17]
[1719183357116,0.34,129.17,129.07,0.34]
[1719183357324,45.34,129.17,129.08,100.0]
[1719183358299,21.8997,129.16,129.08,100.0]
[1719183358696,0.34,129.15,129.08,100.0]
[1719183360319,0.34,129.15,129.05,100.0]
[1719183360320,9.4208,129.14,129.05,100.0]
[1719183360524,22.3239,129.13,129.05,100.0]
[1719183360893,22.3239,129.11,129.02,100.8336853]
[1719183361126,22.3239,129.11,129.02,0.8336853]
[1719183361295,22.3239,129.11,129.04,100.0]
[1719183361626,22.3239,129.11,129.02,200.8336853]
[1719183362627,22.3239,129.11,129.05,100.0]
[1719183364220,22.3239,129.11,129.07,100.0]
[1719183365499,22.3239,129.11,129.05,100.0]
[1719183367500,22.3239,129.11,129.1,100.0]
[1719183367700,255.0,129.19,129.1,100.0]
[1719183367701,6.11139585,129.16,129.1,100.0]
[1719183367901,29.7584,129.17,129.1,100.0]
[1719183370202,29.7584,129.17,129.08,100.0]
[1719183370402,29.7584,129.17,129.09,0.17]
[1719183371426,29.7584,129.17,129.08,100.0]
[1719183371601,0.17,129.16,129.08,100.0]
[1719183371803,29.7584,129.17,129.1,100.0]
[1719183372730,29.7584,129.17,129.12,100.0]
[1719183374521,29.7584,129.17,129.14,100.0]
[1719183374823,8.08304411,129.22,129.14,100.0]
[1719183374824,6.2777953,129.2,129.14,100.0]
[1719183375028,30.4243,129.21,129.14,100.0]
[1719183378805,30.4243,129.21,129.13,100.0]
[1719183380837,30.4243,129.21,129.12,100.0]
[1719183381125,30.4243,129.21,129.1,7.7458]
[1719183381126,0.34,129.2,129.1,100.0]
[1719183381333,45.34,129.2,129.1,100.0]
[1719183383433,30.4243,129.21,129.13,100.0]
[1719183386038,0.34,129.2,129.11,100.0]
[1719183393924,30.4243,129.21,129.11,100.0]
[1719183394131,30.4243,129.21,129.13,100.0]
[1719183394524,30.4243,129.21,129.14,100.0]
[1719183396927,30.4243,129.21,129.13,100.0]
[1719183397129,30.4243,129.21,129.14,100.0]
[1719183397322,30.4243,129.21,129.13,100.0]
[1719183399753,30.4243,129.21,129.15,100.0]
[1719183400141,0.17,129.2,129.12,100.0]
[1719183400456,30.4243,129.21,129.12,200.0]
[1719183400632,30.4243,129.21,129.14,200.0]
[1719183401067,30.4243,129.21,129.14,100.0]
[1719183402237,30.4243,129.21,129.16,107.7419]
[1719183402440,30.4243,129.21,129.16,100.0]
[1719183403135,30.4243,129.21,129.17,0.87719439]
[1719183406648,21.2668,129.21,129.16,100.0]
[1719183409433,21.2668,129.21,129.18,100.0]
[1719183421360,35.71333981,129.24,129.18,100.0]
[1719183425089,29.6919,129.24,129.18,100.0]
[1719183425261,21.16,129.24,129.2,100.0]
[1719183429863,21.16,129.24,129.18,100.0]
[1719183430084,21.16,129.24,129.17,100.0]
[1719183430284,8.909,129.23,129.15,100.0]
[1719183430659,8.909,129.23,129.14,100.0]
[1719183430860,0.17,129.22,129.13,100.0]
[1719183431158,0.17,129.22,129.12,100.0]